bitfinex-derivatives/quotes_ETHF0:USTF0_20210402
["timestamp","ask_amount","ask_price","bid_price","bid_amount"]
[1617323824813,13.4763,1955.4,1955.3,8.02248456]
[1617323827013,13.4763,1955.4,1955.3,7.01408456]
[1617323827612,13.4763,1955.4,1955.3,0.43401484]
[1617323833019,13.4763,1955.4,1955.3,1.47011484]
[1617323833217,13.4763,1955.4,1955.3,8.05210196]
[1617323836022,13.4763,1955.4,1955.3,1.47011484]
[1617323838323,12.2076,1955.4,1955.3,1.47011484]
[1617323841134,11.1837,1955.4,1955.3,1.47011484]
[1617323841540,8.8929,1955.4,1955.3,1.47011484]
[1617323841726,7.8412,1955.4,1955.3,1.47011484]
[1617323841927,6.5413,1955.4,1955.3,1.47011484]
[1617323842130,6.4485,1955.4,1955.3,1.47011484]
[1617323842527,6.0227,1955.4,1955.3,1.47011484]
[1617323842727,5.512,1955.4,1955.3,1.47011484]
[1617323843328,3.7014,1956.0,1955.4,72.9827]
[1617323843528,83.3428,1956.1,1955.4,72.9827]
[1617323843529,82.3328,1956.1,1955.5,2.42688098]
[1617323843731,79.2361,1956.1,1955.5,2.42688098]
[1617323843929,77.2004,1956.1,1955.8,8.94231702]
[1617323844130,77.2004,1956.1,1955.9,3.1]
[1617323844331,77.2004,1956.1,1955.9,12.46424595]
[1617323844532,77.2004,1956.1,1956.0,0.42551212]
[1617323844533,76.1904,1956.1,1956.0,0.42551212]
[1617323844731,75.9373,1956.1,1956.0,1.52551212]
[1617323844931,75.9373,1956.1,1956.0,10.46019566]
[1617323845133,75.9373,1956.1,1956.0,12.46019566]
[1617323845333,75.9373,1956.1,1956.0,12.95236697]
[1617323845532,74.0905,1956.1,1956.0,12.95236697]
[1617323846032,73.606,1956.1,1956.0,12.95236697]
[1617323846433,73.012,1956.1,1956.0,12.95236697]
[1617323846633,70.6171,1956.1,1956.0,12.95236697]
[1617323847533,46.9585,1956.1,1956.0,12.95236697]
[1617323847935,46.9585,1956.1,1956.0,6.43246212]
[1617323848135,16.9389,1956.1,1956.0,6.43246212]
[1617323848337,16.1891,1956.1,1956.0,6.43246212]
[1617323848536,15.6996,1956.1,1956.0,6.43246212]
[1617323848737,3.6894,1956.1,1956.0,6.43246212]
[1617323848938,2.3982,1956.1,1956.0,6.43246212]
[1617323849236,2.2346,1956.1,1956.0,6.43246212]
[1617323849838,1.7186,1956.1,1956.0,6.43246212]
[1617323850039,1.0076,1956.1,1956.0,6.43246212]
[1617323850740,0.7519,1956.1,1956.0,6.43246212]
[1617323851439,0.4449,1956.1,1956.0,6.43246212]
[1617323851640,13.6191,1956.9,1956.0,6.43246212]
[1617323851839,13.6191,1956.9,1956.0,7.46036212]
[1617323852040,13.6191,1956.9,1956.4,4.12539197]
[1617323852244,13.6191,1956.9,1956.4,5.22539197]
[1617323852642,13.6191,1956.9,1956.4,7.22539197]
[1617323853245,13.6191,1956.9,1956.4,3.1]
[1617323853246,13.3412,1956.9,1956.4,3.1]
[1617323853443,13.3412,1956.9,1956.8,2.90695]
[1617323853644,12.3362,1956.9,1956.8,2.90695]
[1617323854647,12.3362,1956.9,1956.8,3.94325]
[1617323855747,11.0551,1956.9,1956.8,3.94325]
[1617323861451,10.0438,1956.9,1956.8,3.94325]
[1617323863253,8.0308,1956.9,1956.8,3.94325]
[1617323864956,7.0168,1956.9,1956.8,3.94325]
[1617323865356,6.1458,1956.9,1956.8,3.94325]
[1617323865957,7.3741,1956.9,1956.8,3.94325]
[1617323866157,7.3741,1956.9,1956.8,2.90695]
[1617323870769,8.4077,1956.9,1956.8,2.90695]
[1617323870972,7.3741,1956.9,1956.8,2.90695]
[1617323872071,8.3845,1956.9,1956.8,2.90695]
[1617323873172,7.1562,1956.9,1956.8,2.90695]
[1617323873373,6.1458,1956.9,1956.8,2.90695]
[1617323874373,5.5269,1956.9,1956.8,2.90695]
[1617323874573,6.547,1956.9,1956.8,2.90695]
[1617323875173,6.4698,1956.9,1956.8,2.90695]
[1617323877577,6.2447,1956.9,1956.8,2.90695]
[1617323878580,5.8841,1956.9,1956.8,2.90695]
[1617323878781,4.0439,1956.9,1956.8,2.90695]
[1617323878981,2.1027,1956.9,1956.8,2.90695]
[1617323879181,1.0202,1956.9,1956.8,2.90695]
[1617323879981,0.0001,1956.9,1956.8,2.90695]
[1617323881285,0.0001,1956.9,1956.8,3.93335]
[1617323882183,0.0001,1956.9,1956.8,2.90695]
[1617323883585,1.0369,1956.9,1956.8,2.90695]
[1617323883784,0.0001,1956.9,1956.8,2.90695]
[1617323885590,0.0001,1956.9,1956.8,3.32887477]
[1617323886392,13.8471,1957.4,1956.8,3.32887477]
[1617323886592,13.8471,1957.4,1956.8,4.36807477]
[1617323886794,13.5337,1957.4,1956.9,0.42152601]
[1617323886994,12.2707,1957.4,1956.9,0.42152601]
[1617323887396,9.6632,1957.4,1956.9,0.42152601]
[1617323887593,8.6384,1957.4,1956.9,0.42152601]
[1617323887795,7.6284,1957.4,1957.3,2.90695]
[1617323888194,7.1155,1957.4,1957.3,2.90695]
[1617323888995,7.1155,1957.4,1957.3,3.93615]
[1617323889396,1.9603,1957.4,1957.3,3.93615]
[1617323892600,4.90695,1959.0,1957.3,3.93615]
[1617323892800,4.90695,1959.0,1958.5,64.8431]
[1617323893804,2.0,1959.0,1958.9,2.90695]
[1617323894005,2.90695,1959.2,1958.9,2.90695]
[1617323894203,4.90695,1959.2,1958.9,2.90695]
[1617323895904,4.90695,1959.2,1959.1,2.90695]
[1617323896806,35.91665,1959.2,1959.1,2.90695]
[1617323897008,34.90695,1959.2,1959.1,2.90695]
[1617323899107,34.90695,1959.2,1959.1,3.92985]
[1617323899509,34.90695,1959.2,1957.7,1.0285]
[1617323899709,71.7222,1958.6,1957.7,1.0285]
[1617323899908,75.34,1958.6,1958.4,2.90695]
[1617323900308,105.34,1958.6,1958.4,2.90695]
[1617323900509,105.34,1958.6,1957.3,71.7222]
[1617323901710,33.6178,1958.6,1956.6,1.0156]
[1617323901910,33.6178,1958.6,1958.1,2.90695]
[1617323902111,73.3205,1957.8,1956.4,73.3205]
[1617323902309,75.3205,1957.8,1956.5,0.42575508]
[1617323902709,14.6898,1957.7,1956.5,0.42575508]
[1617323902909,28.9881,1957.7,1956.5,1.44045508]
[1617323903409,30.6167,1957.7,1956.6,0.42584845]
[1617323903809,30.6167,1957.7,1957.6,2.90695]
[1617323905211,62.6167,1957.7,1957.6,2.90695]
[1617323911519,32.6167,1957.7,1957.6,2.90695]
[1617323915120,30.9881,1957.7,1957.6,2.90695]
[1617323915520,28.9881,1957.7,1957.6,2.90695]
[1617323917126,27.7361,1957.7,1957.6,2.90695]
[1617323918223,76.0516,1958.5,1957.6,2.90695]
[1617323918623,76.0516,1958.5,1958.4,82.0156]
[1617323918824,76.0516,1958.5,1958.4,84.5518]
[1617323920126,76.0516,1958.5,1958.4,87.45875]
[1617323920828,2.0,1958.9,1958.4,5.44315]
[1617323921028,2.0,1958.9,1958.4,3.92145]
[1617323921229,73.3844,1958.8,1958.4,3.92145]
[1617323921429,2.0,1958.9,1958.4,2.90695]
[1617323921630,2.90695,1959.0,1958.4,2.90695]
[1617323922029,2.90695,1959.0,1957.8,1.578]
[1617323922030,2.90695,1959.2,1958.9,2.90695]
[1617323922430,4.90695,1959.2,1958.9,2.90695]
[1617323922630,4.90695,1959.2,1958.9,3.93585]
[1617323923631,4.90695,1959.2,1958.9,2.90695]
[1617323924032,4.90695,1959.2,1959.1,2.90695]
[1617323926233,2.90695,1959.2,1959.1,2.90695]
[1617323927535,4.90695,1959.2,1959.1,2.90695]
[1617323928134,2.90695,1959.4,1959.1,2.90695]
[1617323928334,14.0198,1959.3,1959.1,2.90695]
[1617323928539,28.0664,1959.3,1959.1,2.90695]
[1617323929347,2.0,1959.2,1959.1,2.90695]
[1617323932040,28.0664,1959.3,1959.1,2.90695]
[1617323933843,28.0664,1959.3,1959.2,76.1383]
[1617323936647,30.0664,1959.3,1959.2,76.1383]
[1617323939948,30.0664,1959.3,1959.1,2.90695]
[1617323943252,30.0664,1959.3,1959.2,71.4168]
[1617323944453,60.0664,1959.3,1959.1,2.90695]
[1617323944655,60.9604,1959.2,1959.1,2.90695]
[1617323944856,94.3028,1959.2,1959.1,2.90695]
[1617323945056,94.3028,1959.2,1957.3,5.35593654]
[1617323945057,33.3424,1959.2,1957.3,4.1661363]
[1617323945256,60.9818,1958.7,1957.3,4.1661363]
[1617323945459,2.0,1958.6,1957.1,65.14810607]
[1617323945857,2.0,1958.6,1957.2,1.80124522]
[1617323946058,15.9379,1958.6,1957.2,1.80124522]
[1617323946258,15.9379,1958.6,1958.5,2.90695]
[1617323957567,45.9379,1958.6,1958.5,2.90695]
[1617323958367,48.84485,1958.6,1958.5,2.90695]
[1617323959868,46.84485,1958.6,1958.5,2.90695]
[1617323960067,16.84485,1958.6,1958.5,2.90695]
[1617323962268,13.9379,1958.6,1958.5,2.90695]
[1617323963472,15.088,1958.6,1958.5,2.90695]
[1617323963874,17.088,1958.6,1958.5,2.90695]
[1617323964072,47.088,1958.6,1957.9,65.3739]
[1617323964472,14.4945,1958.5,1958.0,2.90695]
[1617323964672,2.0,1958.4,1958.0,2.90695]
[1617323966575,2.0,1958.4,1958.3,2.90695]
[1617323967375,32.0,1958.4,1958.3,2.90695]
[1617323967578,32.0,1958.4,1957.0,4.16928882]
[1617323967778,30.0,1958.2,1957.0,87.65868882]
[1617323967979,31.6158,1958.2,1957.0,83.4894]
[1617323968178,31.6158,1958.2,1956.9,4.16958535]
[1617323968378,31.6158,1958.2,1956.8,4.16975317]
[1617323968379,83.5141,1957.6,1956.8,4.16975317]
[1617323968578,83.5141,1957.6,1957.5,2.90695]
[1617323968579,84.5647,1957.6,1957.5,2.90695]
[1617323969480,114.5647,1957.6,1957.5,2.90695]
[1617323970481,117.47165,1957.6,1957.5,2.90695]
[1617323971082,132.20165,1957.6,1957.5,2.90695]
[1617323974689,48.68755,1957.6,1957.5,2.90695]
[1617323974888,14.73,1957.6,1957.5,2.90695]
[1617323979192,16.2109,1957.6,1957.2,63.329]
[1617323979393,46.2109,1957.6,1957.2,63.329]
[1617323980591,49.11785,1957.6,1957.5,2.90695]
[1617323981590,60.11785,1957.6,1957.5,2.90695]
[1617323981791,57.2109,1957.6,1957.5,2.90695]
[1617323982691,60.11785,1957.6,1957.5,2.90695]
[1617323986594,57.2109,1957.6,1957.5,2.90695]
[1617323988797,60.11785,1957.6,1957.5,2.90695]
[1617323989201,60.11785,1957.6,1957.2,63.329]
[1617323989604,62.11785,1957.6,1957.2,63.329]
[1617323989805,62.11785,1957.6,1956.3,4.17057789]
[1617323990004,62.11785,1957.6,1956.2,4.17098353]
[1617323990005,72.2467,1956.5,1956.2,4.17098353]
[1617323990206,73.8901,1956.5,1956.2,4.17098353]
[1617323990404,73.8901,1956.5,1956.0,4.17113047]
[1617323990405,14.2487,1956.4,1956.0,4.17113047]
[1617323990603,28.6186,1956.4,1956.0,4.17113047]
[1617323990803,43.1778,1956.4,1956.3,2.90695]
[1617323992507,73.1778,1956.4,1956.3,2.90695]
[1617323992705,76.08475,1956.4,1956.1,2.90695]
[1617323994614,71.5668,1956.3,1956.1,2.90695]
[1617323994815,2.90695,1956.2,1956.1,2.90695]
[1617323995215,32.90695,1956.2,1956.1,2.90695]
[1617323997717,2.90695,1956.2,1956.1,2.90695]
[1617323999520,43.1778,1956.4,1956.1,2.90695]
[1617323999720,43.1778,1956.4,1956.1,4.25795]
[1617324000719,43.1778,1956.4,1956.3,2.90695]
[1617324004524,43.1778,1956.4,1956.3,68.85155]
[1617324010928,43.1778,1956.4,1956.3,69.95465]
[1617324014631,43.1778,1956.4,1956.3,71.95465]
[1617324016133,43.1778,1956.4,1956.3,69.95465]
[1617324016534,43.1778,1956.4,1956.3,68.85155]
[1617324019743,43.1778,1956.4,1956.3,4.90695]
[1617324019942,43.1778,1956.4,1956.3,5.33311657]
[1617324020943,43.1778,1956.4,1956.3,4.90695]
[1617324021943,43.1778,1956.4,1956.3,5.3351901]
[1617324023145,43.1778,1956.4,1956.3,3.3351901]
[1617324025247,43.1778,1956.4,1956.3,2.90695]
[1617324025650,43.1778,1956.4,1956.3,3.33608557]
[1617324028451,44.1986,1956.4,1956.3,3.33608557]
[1617324028652,43.1778,1956.4,1956.3,2.90695]
[1617324029053,43.1778,1956.4,1956.3,3.33655498]
[1617324029253,43.1778,1956.4,1956.3,4.39165498]
[1617324029856,43.1778,1956.4,1956.3,6.39165498]
[1617324030058,23.0748,1956.4,1956.3,6.39165498]
[1617324030254,20.7796,1956.4,1956.3,6.39165498]
[1617324030459,12.6301,1956.4,1956.3,6.39165498]
[1617324030657,8.433,1956.4,1956.3,10.55277412]
[1617324030859,0.2835,1956.4,1956.3,10.55277412]
[1617324031059,79.3658,1957.4,1956.3,10.55277412]
[1617324031460,79.0823,1957.4,1956.4,4.58850067]
[1617324031661,79.0823,1957.4,1956.7,75.9364]
[1617324031860,79.0823,1957.4,1956.8,2.0]
[1617324032059,79.0823,1957.4,1956.9,0.42757819]
[1617324032962,79.0823,1957.4,1957.3,2.90695]
[1617324033163,79.0823,1957.4,1957.3,4.07925]
[1617324033365,79.0823,1957.4,1957.3,4.50660649]
[1617324034165,79.0823,1957.4,1957.3,69.01560649]
[1617324034365,79.0823,1957.4,1957.3,68.58825]
[1617324034765,79.0823,1957.4,1957.3,70.58825]
[1617324035165,79.0823,1957.4,1957.3,68.58825]
[1617324035967,79.0823,1957.4,1957.3,69.01617086]
[1617324037964,79.0823,1957.4,1957.3,71.01617086]
[1617324038365,11.0,1957.6,1957.3,6.50717086]
[1617324038965,11.0,1957.6,1957.5,2.90695]
[1617324044975,11.0,1957.6,1957.5,4.90695]
[1617324046178,9.7436,1957.6,1957.5,4.90695]
[1617324046578,9.7436,1957.6,1957.5,5.32919893]
[1617324046977,9.7436,1957.6,1957.5,9.49729205]
[1617324047176,9.6473,1957.6,1957.5,9.49729205]
[1617324048177,9.538,1957.6,1957.5,9.49729205]
[1617324049280,9.538,1957.6,1957.5,5.32919893]
[1617324049679,9.538,1957.6,1957.5,9.4972844]
[1617324049879,9.1891,1957.6,1957.5,9.4972844]
[1617324050079,9.1891,1957.6,1957.5,5.32919893]
[1617324050278,7.5527,1957.6,1957.5,5.32919893]
[1617324050679,5.9433,1957.6,1957.5,5.32919893]
[1617324051089,3.0582,1957.6,1957.5,5.32919893]
[1617324051682,2.0339,1957.6,1957.5,7.1299214]
[1617324051881,2.0339,1957.6,1957.5,4.90695]
[1617324052080,2.0339,1957.6,1957.5,10.26218652]
[1617324052280,2.0339,1957.6,1957.5,4.90695]
[1617324052480,1.0019,1957.6,1957.5,4.90695]
[1617324052681,1.0019,1957.6,1957.5,11.45171381]
[1617324052880,14.6672,1958.1,1957.5,11.86939615]
[1617324053080,13.1872,1958.1,1958.0,2.90695]
[1617324053281,13.1872,1958.1,1958.0,4.90695]
[1617324053482,13.1872,1958.1,1958.0,9.07122095]
[1617324053682,13.1872,1958.1,1958.0,4.90695]
[1617324054284,13.1872,1958.1,1958.0,5.91365]
[1617324054484,13.1872,1958.1,1958.0,11.26757902]
[1617324055884,13.1872,1958.1,1958.0,5.91365]
[1617324056284,13.1872,1958.1,1958.0,87.40505]
[1617324056485,13.1872,1958.1,1958.0,89.2054636]
[1617324058488,13.1872,1958.1,1958.0,85.40505]
[1617324059890,13.1872,1958.1,1958.0,2.90695]
[1617324060090,13.1872,1958.1,1958.0,4.90695]
[1617324060291,8.4446,1958.1,1958.0,4.90695]
[1617324061292,8.4446,1958.1,1958.0,9.07143197]
[1617324062696,8.4446,1958.1,1958.0,4.90695]
[1617324063499,8.0789,1958.1,1958.0,4.90695]
[1617324063697,6.9946,1958.1,1958.0,4.90695]
[1617324063897,6.2175,1958.1,1958.0,4.90695]
[1617324064097,5.7125,1958.1,1958.0,4.90695]
[1617324064297,1.6959,1958.1,1958.0,4.90695]
[1617324064498,0.157,1958.1,1958.0,4.90695]
[1617324066500,14.2737,1958.2,1958.0,4.90695]
[1617324067701,13.4823,1958.2,1958.0,4.90695]
[1617324067903,12.4746,1958.2,1958.0,4.90695]
[1617324069802,12.4014,1958.2,1958.0,4.90695]
[1617324070704,10.3547,1958.2,1958.0,4.90695]
[1617324071104,10.3547,1958.2,1958.1,73.7467]
[1617324071304,10.164,1958.2,1958.1,75.7467]
[1617324073106,9.957,1958.2,1958.1,75.7467]
[1617324074710,9.957,1958.2,1958.1,73.7467]
[1617324075709,9.957,1958.2,1958.1,75.7467]
[1617324075911,9.957,1958.2,1958.1,73.7467]
[1617324078114,9.957,1958.2,1958.0,2.90695]
[1617324078814,9.8981,1958.2,1958.0,2.90695]
[1617324080816,9.1226,1958.2,1958.0,2.90695]
[1617324081016,9.1226,1958.2,1958.1,63.5818]
[1617324081216,8.7082,1958.2,1958.1,63.5818]
[1617324082218,8.404,1958.2,1958.1,63.5818]
[1617324082519,8.2877,1958.2,1958.1,63.5818]
[1617324082720,7.6338,1958.2,1958.1,63.5818]
[1617324082921,7.2355,1958.2,1958.1,63.5818]
[1617324083823,7.2355,1958.2,1958.0,2.90695]
[1617324084024,67.2579,1958.2,1958.0,2.90695]
[1617324085226,14.5177,1958.1,1958.0,2.90695]
[1617324085623,14.5177,1958.1,1958.0,2.89275]
[1617324086027,14.5177,1958.1,1958.0,78.61845]
[1617324086227,14.5177,1958.1,1958.0,2.89275]
[1617324086426,90.2894,1958.1,1958.0,2.89275]
[1617324086829,120.2894,1958.1,1958.0,2.89275]
[1617324087227,123.19635,1958.1,1958.0,2.89275]
[1617324087729,123.19635,1958.1,1957.7,2.584]
[1617324088728,120.2894,1958.1,1957.7,2.584]
[1617324089329,120.2894,1958.1,1958.0,2.90695]
[1617324089929,44.5177,1958.1,1958.0,2.90695]
[1617324090331,14.5177,1958.1,1958.0,2.90695]
[1617324096338,44.5177,1958.1,1958.0,2.90695]
[1617324096937,46.5177,1958.1,1958.0,2.90695]
[1617324097337,123.46745,1958.1,1958.0,2.90695]
[1617324097538,123.46745,1958.1,1957.7,2.584]
[1617324099342,2.90695,1957.8,1957.7,5.49095]
[1617324099545,4.24495,1957.8,1957.7,5.49095]
[1617324099842,1.338,1957.8,1957.7,5.49095]
[1617324100642,88.5605,1958.1,1957.7,5.49095]
[1617324101343,91.46745,1958.1,1958.0,2.90695]
[1617324103343,121.46745,1958.1,1958.0,2.90695]
[1617324105845,123.46745,1958.1,1958.0,2.90695]
[1617324107545,123.46745,1958.1,1957.7,2.584]
[1617324109146,124.49215,1958.1,1957.7,3.62]
[1617324109347,123.46745,1958.1,1957.7,2.584]
[1617324109546,2.90695,1957.8,1957.7,5.49095]
[1617324110548,4.90695,1957.8,1957.7,5.49095]
[1617324110948,34.90695,1957.8,1957.7,5.49095]
[1617324111148,36.10005,1957.8,1957.7,1.0649]
[1617324112349,36.10005,1957.8,1957.1,2.90695]
[1617324112549,74.2981,1957.2,1957.1,2.90695]
[1617324112749,77.7536,1957.2,1957.1,2.90695]
[1617324117161,76.2981,1957.2,1957.1,2.90695]
[1617324117763,2.90695,1957.4,1957.1,2.90695]
[1617324117965,14.3326,1957.5,1957.1,2.90695]
[1617324118565,3.8197,1957.5,1957.1,3.92405]
[1617324118762,14.2724,1957.7,1957.1,3.92405]
[1617324118962,14.2724,1957.7,1957.1,2.90695]
[1617324119163,14.888,1957.4,1957.1,2.90695]
[1617324119562,14.888,1957.4,1956.9,1.5586]
[1617324119563,8.2902,1957.4,1957.3,2.90695]
[1617324119762,8.2902,1957.4,1957.3,4.26865]
[1617324119964,14.2724,1957.7,1957.3,4.26865]
[1617324120164,14.2724,1957.7,1957.4,83.1305]
[1617324120364,5.9822,1957.7,1957.4,83.1305]
[1617324120564,81.0838,1958.7,1957.5,1.80064306]
[1617324121365,81.0838,1958.7,1957.5,5.96610876]
[1617324121564,81.0838,1958.7,1958.6,2.90695]
[1617324121764,2.0,1959.1,1958.6,2.90695]
[1617324122466,2.0,1959.1,1959.0,85.1626]
[1617324123567,2.0,1959.1,1959.0,2.90695]
[1617324125569,4.90695,1959.1,1959.0,2.90695]
[1617324126070,34.90695,1959.1,1959.0,2.90695]
[1617324126872,34.90695,1959.1,1957.5,79.7946]
[1617324127072,36.26075,1959.1,1957.5,79.7946]
[1617324127272,36.26075,1959.1,1957.4,4.16832339]
[1617324127473,70.4913,1958.4,1957.3,4.16853178]
[1617324127673,101.8351,1958.4,1957.9,2.90695]
[1617324128074,2.0,1958.3,1957.9,2.90695]
[1617324129575,2.0,1958.3,1958.1,2.90695]
[1617324130375,16.6792,1958.3,1958.1,2.90695]
[1617324130575,46.6792,1958.3,1958.1,2.90695]
[1617324130776,60.3059,1958.3,1958.1,2.90695]
[1617324130976,60.3059,1958.3,1957.1,84.4881]
[1617324131577,60.3059,1958.3,1958.1,2.90695]
[1617324131777,60.3059,1958.3,1957.1,84.4881]
[1617324133680,60.3059,1958.3,1957.5,2.90695]
[1617324135683,2.90695,1957.6,1957.5,2.90695]
[1617324135884,6.01985,1957.6,1957.5,2.90695]
[1617324138689,6.01985,1957.6,1957.1,84.4881]
[1617324139092,14.3267,1957.5,1957.1,84.4881]
[1617324139292,2.0,1957.4,1956.9,2.584]
[1617324139491,15.9951,1957.4,1956.9,2.584]
[1617324139692,15.9951,1957.4,1957.0,2.90695]
[1617324140092,45.9951,1957.4,1957.0,2.90695]
[1617324140894,108.1265,1957.1,1957.0,2.90695]
[1617324141093,111.5815,1957.1,1957.0,2.90695]
[1617324141294,111.5815,1957.1,1956.1,6.75173242]
[1617324141493,111.5815,1957.1,1956.1,2.584]
[1617324141695,2.90695,1956.2,1956.1,5.49095]
[1617324141893,4.30775,1956.2,1956.1,5.49095]
[1617324142093,4.30775,1956.2,1956.1,5.91390159]
[1617324142694,4.30775,1956.2,1956.1,5.49095]
[1617324143696,6.30775,1956.2,1956.1,5.49095]
[1617324144096,36.30775,1956.2,1956.1,5.49095]
[1617324144798,6.30775,1956.2,1956.1,5.49095]
[1617324145401,4.90695,1956.2,1956.1,5.49095]
[1617324145601,2.90695,1956.2,1956.1,5.49095]
[1617324145803,29.5385,1956.3,1956.1,5.49095]
[1617324146004,29.5385,1956.3,1956.1,2.90695]
[1617324146603,27.5385,1956.3,1956.1,2.90695]
[1617324148007,29.5385,1956.3,1956.1,2.90695]
[1617324148509,43.905,1956.3,1956.1,2.90695]
[1617324149810,2.90695,1956.2,1956.1,2.90695]
[1617324150010,6.43945,1956.2,1956.1,2.90695]
[1617324150811,6.43945,1956.2,1955.4,2.584]
[1617324151811,2.0,1956.2,1956.1,2.90695]
[1617324153613,2.0,1956.2,1955.4,2.584]
[1617324153813,3.4197,1956.2,1955.8,2.90695]
[1617324155715,2.90695,1955.9,1955.8,2.90695]
[1617324165425,41.905,1956.3,1955.8,2.90695]
[1617324165825,41.905,1956.3,1956.2,2.90695]
[1617324166026,41.905,1956.3,1956.2,3.95775]
[1617324167827,41.905,1956.3,1956.2,2.90695]
[1617324169829,44.81195,1956.3,1956.2,2.90695]
[1617324170929,46.36615,1956.3,1956.2,2.90695]
[1617324171129,46.36615,1956.3,1955.4,2.584]
[1617324171329,83.0111,1956.2,1955.4,2.584]
[1617324171831,83.0111,1956.2,1955.9,2.90695]
[1617324172231,43.4592,1956.3,1955.9,2.90695]
[1617324173935,43.4592,1956.3,1956.1,2.90695]
[1617324174134,41.905,1956.3,1956.1,2.90695]
[1617324175838,2.90695,1956.2,1956.1,2.90695]
[1617324176639,41.905,1956.3,1956.2,80.4723]
[1617324178942,41.905,1956.3,1956.1,2.90695]
[1617324179145,41.905,1956.3,1956.1,85.75345]
[1617324180644,41.905,1956.3,1956.1,2.90695]
[1617324181846,2.90695,1956.2,1956.1,2.90695]
[1617324183051,4.10405,1956.2,1956.1,2.90695]
[1617324184850,2.90695,1956.2,1956.1,2.90695]
[1617324193159,4.49675,1956.2,1956.1,2.90695]
[1617324194760,4.49675,1956.2,1955.6,64.9082]
[1617324195160,4.49675,1956.2,1955.7,0.41851581]
[1617324196061,3.5898,1956.2,1955.8,2.90695]
[1617324196460,3.5898,1956.2,1955.9,0.41949789]
[1617324196862,82.0785,1956.0,1955.9,0.41949789]
[1617324197461,82.0785,1956.0,1955.8,2.90695]
[1617324198163,2.90695,1955.9,1955.8,2.90695]
[1617324198562,2.90695,1955.9,1955.8,3.32984038]
[1617324206373,41.905,1956.3,1956.2,69.5044]
[1617324206773,41.905,1956.3,1956.2,70.5635]
[1617324206972,41.905,1956.3,1956.2,70.98690351]
[1617324208274,41.905,1956.3,1956.2,73.89385351]
[1617324208571,41.905,1956.3,1956.2,4.38945351]
[1617324208773,41.905,1956.3,1956.2,3.33035351]
[1617324209573,42.9424,1956.3,1956.2,3.33035351]
[1617324210173,41.905,1956.3,1956.2,3.33035351]
[1617324212178,42.9284,1956.3,1956.2,0.42340351]
[1617324212377,45.83535,1956.3,1956.2,0.42340351]
[1617324212577,45.83535,1956.3,1955.7,2.90695]
[1617324212780,45.83535,1956.3,1955.8,0.42373598]
[1617324213178,46.85415,1956.3,1955.8,0.42373598]
[1617324213379,45.83535,1956.3,1955.8,0.42373598]
[1617324214379,42.9284,1956.3,1956.1,2.90695]
[1617324214579,42.9284,1956.3,1955.8,0.42373598]
[1617324214779,42.9284,1956.3,1955.4,2.584]
[1617324214980,42.9284,1956.3,1955.9,0.42395796]
[1617324215379,42.9284,1956.3,1955.5,0.42399694]
[1617324216482,42.9284,1956.3,1955.7,2.90695]
[1617324216880,42.9284,1956.3,1955.8,0.42405974]
[1617324217380,42.9284,1956.3,1955.8,4.6081781]
[1617324217780,42.9284,1956.3,1955.8,0.42405974]
[1617324217980,42.9284,1956.3,1955.9,0.42372727]
[1617324218381,2.90695,1956.0,1955.9,0.42372727]
[1617324218584,2.90695,1956.0,1955.8,4.60791498]
[1617324218781,2.90695,1956.0,1955.9,0.42390803]
[1617324221184,2.90695,1956.0,1955.9,4.6078738]
[1617324221586,2.90695,1956.0,1955.9,0.42390803]
[1617324223886,32.90695,1956.0,1955.9,0.42390803]
[1617324224489,32.90695,1956.0,1955.7,4.18463122]
[1617324224490,58.9593,1955.9,1955.7,4.18463122]
[1617324224690,32.0,1955.8,1955.4,2.584]
[1617324225291,32.0,1955.8,1955.4,0.1337]
[1617324225791,33.028,1955.8,1955.4,0.1337]
[1617324226191,60.7515,1955.7,1955.4,0.1337]
[1617324226392,2.90695,1955.5,1954.9,63.65845]
[1617324226593,4.04065,1955.5,1954.9,63.65845]
[1617324226791,29.2859,1955.4,1954.9,63.65845]
[1617324227192,43.9983,1955.4,1955.0,0.42352231]
[1617324228494,2.90695,1955.1,1954.9,2.90695]
[1617324228695,70.5199,1955.0,1954.9,8.29031636]
[1617324229098,70.5199,1955.0,1954.9,8.7144035]
[1617324229697,70.5199,1955.0,1954.9,3.33103714]
[1617324230497,2.90695,1955.1,1954.9,8.71453783]
[1617324230896,43.9983,1955.4,1954.9,8.71453783]
[1617324231096,43.9983,1955.4,1955.0,0.42467424]
[1617324231299,43.9983,1955.4,1955.3,80.3059]
[1617324231898,43.9983,1955.4,1955.3,82.10912792]
[1617324232498,46.90525,1955.4,1955.3,85.01607792]
[1617324234100,46.90525,1955.4,1955.3,4.71017792]
[1617324234502,105.38935,1955.4,1955.3,2.90695]
[1617324235700,107.38935,1955.4,1955.3,2.90695]
[1617324235901,137.38935,1955.4,1955.0,4.18709082]
[1617324236101,79.98325,1955.4,1955.0,4.18709082]
[1617324236301,79.98325,1955.4,1954.9,4.18752922]
[1617324236302,60.06340566,1955.0,1954.9,4.18752922]
[1617324236501,64.34805566,1955.0,1954.9,7.09447922]
[1617324236703,64.34805566,1955.0,1954.9,2.90695]
[1617324244411,64.34805566,1955.0,1954.5,2.584]
[1617324244613,61.44110566,1955.0,1954.6,2.90695]
[1617324245913,63.44110566,1955.0,1954.6,2.90695]
[1617324246114,33.3777,1955.0,1954.6,2.90695]
[1617324246314,33.3777,1955.0,1954.5,2.584]
[1617324246513,2.90695,1954.6,1954.5,2.584]